fUSD/lending_fUSD_20250306
["ID","MTS","AMOUNT","RATE_DAILY","PERIOD"]
[355537872,1741242649890,-1626.09,0.00011847,2]
[355537873,1741242649899,-1157.93,0.00011847,2]
[355537874,1741242649909,-500.0,0.00011847,2]
[355537875,1741242649918,-500.0,0.00011847,2]
[355537876,1741242649928,-500.0,0.00011847,2]
[355537877,1741242649937,-586.67,0.00011847,2]
[355537878,1741242649947,-833.12,0.00011847,2]
[355537879,1741242649956,-715.21,0.00011847,2]
[355537880,1741242649966,-500.0,0.00011847,2]
[355537881,1741242649975,-506.63,0.00011847,2]
[355537882,1741242649985,-1582.89,0.00011847,2]
[355537883,1741242649995,-4845.47,0.00011847,2]
[355537884,1741242650005,-932.14,0.00011847,2]
[355537885,1741242650015,-1685.32,0.00011847,2]
[355537886,1741242650025,-834.77,0.00011847,2]
[355537887,1741242650034,-500.0,0.00011847,2]
[355537888,1741242650045,-500.0,0.00011847,2]
[355537889,1741242650055,-500.0,0.00011847,2]
[355537890,1741242650064,-500.0,0.00011847,2]
[355537891,1741242650073,-500.0,0.00011847,2]
[355537892,1741242650083,-500.0,0.00011847,2]
[355537893,1741242650093,-584.63,0.00011847,2]
[355537894,1741242650103,-500.0,0.00011847,2]
[355537895,1741242650112,-500.0,0.00011847,2]
[355537896,1741242650122,-500.0,0.00011847,2]
[355537897,1741242650131,-500.0,0.00011847,2]
[355537898,1741242650140,-500.0,0.00011847,2]
[355537899,1741242650150,-150.0,0.00011853,2]
[355537900,1741242650162,-8475.33190156,0.00011862,2]
[355537901,1741242650172,-265.26876045,0.00011866,2]
[355537902,1741242650181,-708.24182511,0.00011869,2]
[355537903,1741242650190,-162.19887289,0.00011888,2]
[355537904,1741242650199,-564.94597765,0.00011899,2]
[355537905,1741242650210,-500.0,0.00011899,2]
[355537906,1741242650219,-500.0,0.00011899,2]
[355537907,1741242650228,-408.23816608,0.00011899,2]
[355537908,1741242650240,-250500.34548739,0.000119,2]
[355537909,1741242650250,-2163.53701847,0.000119,2]
[355537910,1741242650259,-171.75100347,0.000119,2]
[355537911,1741242650273,-265.26876045,0.00011934,2]
[355537912,1741242650282,-824.89,0.00011935,2]
[355537913,1741242650292,-500.0,0.00011935,2]
[355537914,1741242650302,-500.0,0.00011935,2]
[355537915,1741242650312,-920.69,0.00011935,2]
[355537916,1741242650322,-1212.33,0.00011935,2]
[355537917,1741242650331,-1575.43,0.00011935,2]
[355537918,1741242650340,-1088.41,0.00011935,2]
[355537919,1741242650350,-423.11,0.00011935,2]
[355537920,1741242650360,-1646.66,0.00011935,2]
[355537921,1741242650369,-1523.14,0.00011935,2]
[355537922,1741242650378,-878.32,0.00011935,2]
[355537923,1741242650388,-1263.93,0.00011935,2]
[355537924,1741242650399,-1353.13,0.00011935,2]
[355537925,1741242650410,-953.27,0.00011935,2]
[355537926,1741242650420,-3937.79,0.00011935,2]
[355537927,1741242650429,-646.81,0.00011935,2]
[355537928,1741242650438,-721.41,0.00011935,2]
[355537929,1741242650449,-1233.48,0.00011935,2]
[355537930,1741242650459,-1170.19,0.00011935,2]
[355537931,1741242650470,-655.5,0.00011935,2]
[355537932,1741242650480,-4451.11,0.00011935,2]
[355537933,1741242650492,-500.0,0.00011935,2]
[355537934,1741242650501,-500.0,0.00011935,2]
[355537935,1741242650511,-574.72,0.00011935,2]
[355537936,1741242650521,-1581.912246,0.00011936,2]
[355537937,1741242650530,-890.79,0.00011936,2]
[355537938,1741242650540,-1484.36,0.00011936,2]
[355537939,1741242650550,-500.0,0.00011936,2]
[355537940,1741242650560,-6051.9,0.00011936,2]
[355537941,1741242650570,-1947.4,0.00011936,2]
[355537942,1741242650580,-1355.74,0.00011936,2]
[355537943,1741242650590,-993.02325,0.00011936,2]
[355537944,1741242650601,-1865.24,0.00011936,2]
[355537945,1741242650611,-1308.88,0.00011936,2]
[355537946,1741242650620,-2023.42,0.00011936,2]
[355537947,1741242650630,-808.1,0.00011936,2]
[355537948,1741242650639,-1087.99,0.00011936,2]
[355537949,1741242650650,-713.77,0.00011936,2]
[355537950,1741242650660,-1242.63,0.00011936,2]
[355537951,1741242650670,-500.0,0.00011936,2]
[355537952,1741242650679,-841.98,0.00011936,2]
[355537953,1741242650689,-1122.94,0.00011936,2]
[355537954,1741242650698,-1427.28,0.00011936,2]
[355537955,1741242650708,-1077.08,0.00011936,2]
[355537956,1741242650717,-1687.03,0.00011936,2]
[355537957,1741242650727,-3373.3,0.00011936,2]
[355537958,1741242650737,-1088.82,0.00011936,2]
[355537959,1741242650747,-1049.59,0.00011936,2]
[355537960,1741242650756,-7192.11,0.00011936,2]
[355537961,1741242650766,-8475.33190156,0.00011945,2]
[355537962,1741242650777,-150.0,0.00011955,2]
[355537963,1741242650786,-150.0,0.00011969,2]
[355537964,1741242650796,-1061.0,0.00011972,2]
[355537965,1741242650806,-150.0,0.00011972,2]
[355537966,1741242650815,-1000.0,0.00011972,2]
[355537967,1741242650825,-150.0,0.00011988,2]
[355537968,1741242650834,-2191.3711469,0.00011995,2]
[355537969,1741242650844,-4617.5036069,0.00011995,2]
[355537970,1741242650853,-29647.0,0.00012,14]
[355537971,1741242650862,-150.0,0.00012,2]
[355537972,1741242650872,-300.0,0.00012,2]
[355537973,1741242650881,-645.479,0.00012,2]
[355537974,1741242650892,-29180.0,0.00012,3]
[355537975,1741242650905,-154.638197,0.00012,2]
[355537976,1741242650915,-517.0,0.00012,2]
[355537977,1741242650925,-265.26876045,0.00012003,2]
[355537978,1741242650934,-150.0,0.00012004,2]
[355537979,1741242650944,-150.0,0.00012029,2]
[355537980,1741242650957,-500.0,0.00012036,2]
[355537981,1741242650967,-500.0,0.00012036,2]
[355537982,1741242650976,-554.41,0.00012036,2]
[355537983,1741242650986,-566.12,0.00012036,2]
[355537984,1741242650995,-500.0,0.00012036,2]
[355537985,1741242651005,-668.76,0.00012036,2]
[355537986,1741242651015,-500.0,0.00012036,2]
[355537987,1741242651025,-747.52,0.00012036,2]
[355537988,1741242651034,-500.0,0.00012036,2]
[355537989,1741242651046,-500.0,0.00012036,2]
[355537990,1741242651056,-500.0,0.00012036,2]
[355537991,1741242651065,-500.0,0.00012036,2]
[355537992,1741242651074,-500.0,0.00012036,2]
[355537993,1741242651084,-538.89,0.00012036,2]
[355537994,1741242651094,-500.0,0.00012036,2]
[355537995,1741242651104,-500.0,0.00012036,2]
[355537996,1741242651114,-557.61,0.00012036,2]
[355537997,1741242651124,-500.0,0.00012036,2]
[355537998,1741242651133,-500.0,0.00012036,2]
[355537999,1741242651143,-500.0,0.00012036,2]
[355538000,1741242651153,-500.0,0.00012036,2]
[355538001,1741242651167,-500.0,0.00012036,2]
[355538002,1741242651176,-500.0,0.00012036,2]
[355538003,1741242651187,-500.0,0.00012036,2]
[355538004,1741242651197,-811.14,0.00012036,2]
[355538005,1741242651207,-500.0,0.00012036,2]
[355538006,1741242651217,-500.0,0.00012036,2]
[355538007,1741242651227,-643.07,0.00012036,2]
[355538008,1741242651237,-500.0,0.00012036,2]
[355538009,1741242651247,-813.76,0.00012036,2]
[355538010,1741242651256,-500.0,0.00012036,2]
[355538011,1741242651267,-500.0,0.00012036,2]
[355538012,1741242651277,-500.0,0.00012036,2]
[355538013,1741242651288,-500.0,0.00012036,2]
[355538014,1741242651298,-500.0,0.00012036,2]
[355538015,1741242651311,-500.0,0.00012036,2]
[355538016,1741242651322,-274.03,0.00012036,2]
[355538017,1741242651333,-675.83,0.00012036,2]
[355538018,1741242651343,-500.0,0.00012036,2]
[355538019,1741242651354,-500.0,0.00012036,2]
[355538020,1741242651372,-500.0,0.00012036,2]
[355538021,1741242651382,-500.0,0.00012036,2]
[355538022,1741242651392,-500.0,0.00012036,2]
[355538023,1741242651402,-583.36,0.00012036,2]
[355538024,1741242651412,-500.0,0.00012036,2]
[355538025,1741242651422,-500.0,0.00012036,2]
[355538026,1741242651433,-627.85,0.00012036,2]
[355538027,1741242651443,-806.82,0.00012036,2]
[355538028,1741242651453,-500.0,0.00012036,2]
[355538029,1741242651462,-595.42,0.00012036,2]
[355538030,1741242651471,-716.19,0.00012036,2]
[355538031,1741242651481,-641.12,0.00012036,2]
[355538032,1741242651490,-500.0,0.00012036,2]
[355538033,1741242651500,-726.67,0.00012036,2]
[355538034,1741242651510,-877.44,0.00012036,2]
[355538035,1741242651520,-1110.25,0.00012036,2]
[355538036,1741242651529,-3653.64,0.00012036,2]
[355538037,1741242651539,-1032.55,0.00012036,2]
[355538038,1741242651552,-500.0,0.00012036,2]
[355538039,1741242651562,-569.37,0.00012036,2]
[355538040,1741242651571,-500.0,0.00012036,2]
[355538041,1741242651581,-3177.11,0.00012036,2]
[355538042,1741242651591,-500.0,0.00012036,2]
[355538043,1741242651600,-500.0,0.00012036,2]
[355538044,1741242651610,-558.13,0.00012036,2]
[355538045,1741242651619,-3631.02,0.00012036,2]
[355538046,1741242651629,-3181.82,0.00012036,2]
[355538047,1741242651639,-745.68,0.00012036,2]
[355538048,1741242651649,-711.82,0.00012036,2]
[355538049,1741242651659,-1355.71,0.00012036,2]
[355538050,1741242651668,-1224.6,0.00012036,2]
[355538051,1741242651677,-1663.69,0.00012036,2]
[355538052,1741242651692,-517.0,0.00012036,2]
[355538053,1741242651701,-325.04434734,0.00012036,2]
[355538054,1741242651711,-1117.25,0.00012036,2]
[355538055,1741242651720,-567.05,0.00012036,2]
[355538056,1741242651729,-1106.66,0.00012036,2]
[355538057,1741242651739,-2475.35,0.00012036,2]
[355538058,1741242651749,-182.98,0.00012036,2]
[355538059,1741242651758,-1700.37,0.00012036,2]
[355538060,1741242651767,-627.38,0.00012036,2]
[355538061,1741242651777,-500.0,0.00012036,2]
[355538062,1741242651786,-695.23,0.00012036,2]
[355538063,1741242651798,-4321.77,0.00012036,2]
[355538064,1741242651807,-561.2,0.00012036,2]
[355538065,1741242651816,-500.0,0.00012036,2]
[355538066,1741242651826,-500.0,0.00012036,2]
[355538067,1741242651836,-560.65,0.00012036,2]
[355538068,1741242651846,-1202.02,0.00012036,2]
[355538069,1741242651856,-500.0,0.00012036,2]
[355538070,1741242651865,-1488.64,0.00012036,2]
[355538071,1741242651875,-500.0,0.00012036,2]
[355538072,1741242651884,-943.22,0.00012036,2]
[355538073,1741242651894,-500.0,0.00012037,2]
[355538074,1741242651903,-500.0,0.00012037,2]
[355538075,1741242651913,-500.0,0.00012037,2]
[355538076,1741242651922,-500.0,0.00012037,2]
[355538077,1741242651932,-602.75,0.00012037,2]
[355538078,1741242651942,-500.0,0.00012037,2]
[355538079,1741242651951,-500.0,0.00012037,2]
[355538080,1741242651962,-500.0,0.00012037,2]
[355538081,1741242651971,-500.0,0.00012037,2]
[355538082,1741242651981,-500.0,0.00012037,2]
[355538083,1741242651991,-500.0,0.00012037,2]
[355538084,1741242652000,-500.0,0.00012037,2]
[355538085,1741242652010,-716.33,0.00012037,2]
[355538086,1741242652019,-500.0,0.00012037,2]
[355538087,1741242652029,-500.0,0.00012037,2]
[355538088,1741242652040,-500.0,0.00012037,2]
[355538089,1741242652049,-500.0,0.00012037,2]
[355538090,1741242652059,-500.0,0.00012037,2]
[355538091,1741242652068,-500.0,0.00012037,2]
[355538092,1741242652077,-500.0,0.00012037,2]
[355538093,1741242652087,-689.38,0.00012037,2]
[355538094,1741242652098,-500.0,0.00012037,2]
[355538095,1741242652109,-708.94,0.00012037,2]
[355538096,1741242652119,-500.0,0.00012037,2]
[355538097,1741242652128,-500.0,0.00012037,2]
[355538098,1741242652138,-500.0,0.00012037,2]
[355538099,1741242652149,-760.24,0.00012037,2]
[355538100,1741242652168,-500.0,0.00012037,2]
[355538101,1741242652177,-625.92,0.00012037,2]
[355538102,1741242652187,-500.0,0.00012037,2]
[355538103,1741242652198,-500.0,0.00012045,2]
[355538104,1741242652208,-537.16,0.00012045,2]
[355538105,1741242652218,-297.29,0.00012045,2]
[355538106,1741242652227,-500.0,0.00012045,2]
[355538107,1741242652238,-500.0,0.00012045,2]
[355538108,1741242652248,-500.0,0.00012045,2]
[355538109,1741242652257,-500.0,0.00012045,2]
[355538110,1741242652267,-500.0,0.00012045,2]
[355538111,1741242652277,-500.0,0.00012045,2]
[355538112,1741242652287,-502.77,0.00012045,2]
[355538113,1741242652297,-186.58,0.00012045,2]
[355538114,1741242652307,-500.0,0.00012045,2]
[355538115,1741242652317,-500.0,0.00012045,2]
[355538116,1741242652336,-500.0,0.00012045,2]
[355538117,1741242652347,-449.94,0.00012045,2]
[355538118,1741242652357,-338.7,0.00012045,2]
[355538119,1741242652367,-230.01,0.00012045,2]
[355538120,1741242652378,-500.0,0.00012045,2]
[355538121,1741242652388,-500.0,0.00012045,2]
[355538122,1741242652398,-500.0,0.00012045,2]
[355538123,1741242652643,-500.0,0.00012045,2]
[355538124,1741242652661,-500.0,0.00012045,2]
[355538125,1741242652671,-646.38,0.00012045,2]
[355538126,1741242652680,-500.0,0.00012045,2]
[355538127,1741242652690,-496.14,0.00012045,2]
[355538128,1741242652699,-500.0,0.00012045,2]
[355538129,1741242652709,-500.0,0.00012045,2]
[355538130,1741242652718,-500.0,0.00012045,2]
[355538131,1741242652729,-276.33,0.00012045,2]
[355538132,1741242652738,-500.0,0.00012045,2]
[355538133,1741242652747,-168.28,0.00012045,2]
[355538134,1741242652757,-349.9,0.00012045,2]
[355538135,1741242652766,-500.0,0.00012045,2]
[355538136,1741242652775,-500.0,0.00012045,2]
[355538137,1741242652785,-610.51,0.00012045,2]
[355538138,1741242652796,-561.21155278,0.00012045,2]
[355538139,1741242652806,-500.0,0.00012045,2]
[355538140,1741242652815,-500.0,0.00012045,2]
[355538141,1741242652825,-500.0,0.00012045,2]
[355538142,1741242652835,-654.3,0.00012045,2]
[355538143,1741242652844,-500.0,0.00012045,2]
[355538144,1741242652853,-316.22,0.00012045,2]
[355538145,1741242652862,-1109.97,0.00012045,2]
[355538146,1741242652872,-500.0,0.00012045,2]
[355538147,1741242652881,-500.0,0.00012045,2]
[355538148,1741242652890,-500.0,0.00012045,2]
[355538149,1741242652899,-985.96,0.00012045,2]
[355538150,1741242652908,-825.39,0.00012045,2]
[355538151,1741242652918,-1144.29,0.00012045,2]
[355538152,1741242652927,-988.73,0.00012045,2]
[355538153,1741242652937,-1128.71,0.00012045,2]
[355538154,1741242652946,-1570.9,0.00012045,2]
[355538155,1741242652956,-1243.76,0.00012045,2]
[355538156,1741242652965,-500.0,0.00012045,2]
[355538157,1741242652975,-1768.14,0.00012045,2]
[355538158,1741242652984,-11269.69,0.00012045,2]
[355538159,1741242652994,-500.0,0.00012045,2]
[355538160,1741242653003,-452.69,0.00012045,2]
[355538161,1741242653013,-500.0,0.00012045,2]
[355538162,1741242653022,-1114.37,0.00012045,2]
[355538163,1741242653031,-602.61299615,0.00012045,2]
[355538164,1741242653042,-500.0,0.00012045,2]
[355538165,1741242653053,-1926.91,0.00012045,2]
[355538166,1741242653062,-500.0,0.00012045,2]
[355538167,1741242653071,-13274.99,0.00012045,2]
[355538168,1741242653081,-500.0,0.00012045,2]
[355538169,1741242653091,-609.61,0.00012045,2]
[355538170,1741242653099,-1776.34,0.00012045,2]
[355538171,1741242653110,-500.0,0.00012045,2]
[355538172,1741242653119,-415.52,0.00012045,2]
[355538173,1741242653129,-484.9,0.00012045,2]
[355538174,1741242653138,-500.0,0.00012045,2]
[355538175,1741242653147,-1194.0,0.00012045,2]
[355538176,1741242653161,-2774.37,0.00012045,2]
[355538177,1741242653170,-500.0,0.00012045,2]
[355538178,1741242653179,-500.0,0.00012045,2]
[355538179,1741242653189,-1000.0,0.00012045,2]
[355538180,1741242653199,-1000.0,0.00012046,2]
[355538181,1741242653209,-2288.23,0.00012047,2]
[355538182,1741242653219,-1373.93,0.00012055,2]
[355538183,1741242653228,-150.0,0.00012064,2]
[355538184,1741242653238,-150.0,0.00012069,2]
[355538185,1741242653250,-265.26876045,0.00012072,2]
[355538186,1741242653264,-708.24182511,0.00012075,2]
[355538187,1741242653279,-150.0,0.00012081,2]
[355538188,1741242653290,-150.0,0.00012096,2]
[355538189,1741242653299,-573.14,0.00012121,2]
[355538190,1741242653309,-540.31,0.00012121,2]
[355538191,1741242653318,-506.31,0.00012121,2]
[355538192,1741242653328,-500.0,0.00012121,2]
[355538193,1741242653337,-759.62,0.00012121,2]
[355538194,1741242653347,-500.0,0.00012121,2]
[355538195,1741242653356,-500.0,0.00012121,2]
[355538196,1741242653365,-530.4,0.00012121,2]
[355538197,1741242653375,-500.0,0.00012121,2]
[355538198,1741242653387,-500.0,0.00012121,2]
[355538199,1741242653397,-162.44753686,0.00012121,2]
[355538200,1741242653406,-500.0,0.00012121,2]
[355538201,1741242653416,-500.0,0.00012121,2]
[355538202,1741242653425,-583.92,0.00012121,2]
[355538203,1741242653435,-605.52,0.00012121,2]
[355538204,1741242653444,-500.0,0.00012121,2]
[355538205,1741242653454,-500.0,0.00012121,2]
[355538206,1741242653463,-500.0,0.00012121,2]
[355538207,1741242653473,-500.0,0.00012121,2]
[355538208,1741242653482,-500.0,0.00012121,2]
[355538209,1741242653492,-500.0,0.00012121,2]
[355538210,1741242653502,-500.0,0.00012121,2]
[355538211,1741242653511,-500.0,0.00012121,2]
[355538212,1741242653520,-500.0,0.00012121,2]
[355538213,1741242653530,-702.88,0.00012121,2]
[355538214,1741242653539,-500.0,0.00012121,2]
[355538215,1741242653549,-500.0,0.00012121,2]
[355538216,1741242653558,-500.0,0.00012121,2]
[355538217,1741242653567,-500.0,0.00012121,2]
[355538218,1741242653577,-612.48,0.00012121,2]
[355538219,1741242653587,-840.9,0.00012121,2]
[355538220,1741242653597,-1626.09,0.00012121,2]
[355538221,1741242653606,-1157.93,0.00012121,2]
[355538222,1741242653616,-500.0,0.00012121,2]
[355538223,1741242653626,-500.0,0.00012121,2]
[355538224,1741242653636,-500.0,0.00012121,2]
[355538225,1741242653646,-586.67,0.00012121,2]
[355538226,1741242653655,-833.12,0.00012121,2]
[355538227,1741242653664,-715.21,0.00012121,2]
[355538228,1741242653674,-500.0,0.00012121,2]
[355538229,1741242653683,-506.63,0.00012121,2]
[355538230,1741242653693,-1582.89,0.00012121,2]
[355538231,1741242653702,-4845.47,0.00012121,2]
[355538232,1741242653712,-932.14,0.00012121,2]
[355538233,1741242653723,-1685.32,0.00012121,2]
[355538234,1741242653732,-834.77,0.00012121,2]
[355538235,1741242653741,-500.0,0.00012121,2]
[355538236,1741242653751,-500.0,0.00012121,2]
[355538237,1741242653761,-388.11,0.00012121,2]
[355538238,1741242653770,-500.0,0.00012121,2]
[355538239,1741242653780,-500.0,0.00012121,2]
[355538240,1741242653790,-500.0,0.00012121,2]
[355538241,1741242653799,-584.63,0.00012121,2]
[355538242,1741242653808,-500.0,0.00012121,2]
[355538243,1741242653818,-500.0,0.00012121,2]
[355538244,1741242653827,-500.0,0.00012121,2]
[355538245,1741242653837,-500.0,0.00012121,2]
[355538246,1741242653847,-500.0,0.00012121,2]
[355538247,1741242653857,-2000.0,0.0001213,5]
[355538248,1741242653866,-345.61110762,0.00012137,2]
[355538249,1741242653877,-265.26876045,0.00012141,2]
[355538250,1741242653887,-150.0,0.00012147,2]
[355538251,1741242653896,-150.0,0.00012176,2]
[355538252,1741242653905,-150.0,0.00012181,2]
[355538253,1741242653916,-150.0,0.00012182,2]
[355538254,1741242653926,-150.0,0.00012199,2]
[355538255,1741242653936,-824.89,0.00012209,2]
[355538256,1741242653946,-500.0,0.00012209,2]
[355538257,1741242653956,-500.0,0.00012209,2]
[355538258,1741242653967,-920.69,0.00012209,2]
[355538259,1741242653976,-1212.33,0.00012209,2]
[355538260,1741242653987,-1575.43,0.00012209,2]
[355538261,1741242653998,-1088.41,0.00012209,2]
[355538262,1741242654008,-1646.66,0.00012209,2]
[355538263,1741242654018,-1523.14,0.00012209,2]
[355538264,1741242654028,-878.32,0.00012209,2]
[355538265,1741242654038,-1263.93,0.00012209,2]
[355538266,1741242654047,-1353.13,0.00012209,2]
[355538267,1741242654058,-953.27,0.00012209,2]
[355538268,1741242654068,-3937.79,0.00012209,2]
[355538269,1741242654078,-646.81,0.00012209,2]
[355538270,1741242654087,-721.41,0.00012209,2]
[355538271,1741242654096,-1233.48,0.00012209,2]
[355538272,1741242654106,-1170.19,0.00012209,2]
[355538273,1741242654116,-655.5,0.00012209,2]
[355538274,1741242654125,-4451.11,0.00012209,2]
[355538275,1741242654135,-500.0,0.00012209,2]
[355538276,1741242654145,-500.0,0.00012209,2]
[355538277,1741242654156,-574.72,0.00012209,2]
[355538278,1741242654170,-150.0,0.0001221,2]
[355538279,1741242654180,-1581.912246,0.0001221,2]
[355538280,1741242654190,-890.79,0.0001221,2]
[355538281,1741242654200,-1484.36,0.0001221,2]
[355538282,1741242654211,-500.0,0.0001221,2]
[355538283,1741242654220,-6051.9,0.0001221,2]
[355538284,1741242654230,-1947.4,0.0001221,2]
[355538285,1741242654241,-1355.74,0.0001221,2]
[355538286,1741242654250,-993.02325,0.0001221,2]
[355538287,1741242654260,-1865.24,0.0001221,2]
[355538288,1741242654269,-1308.88,0.0001221,2]
[355538289,1741242654278,-2023.42,0.0001221,2]
[355538290,1741242654287,-808.1,0.0001221,2]
[355538291,1741242654297,-1087.99,0.0001221,2]
[355538292,1741242654306,-713.77,0.0001221,2]
[355538293,1741242654316,-1242.63,0.0001221,2]
[355538294,1741242654325,-500.0,0.0001221,2]
[355538295,1741242654335,-841.98,0.0001221,2]
[355538296,1741242654344,-1122.94,0.0001221,2]
[355538297,1741242654354,-1427.28,0.0001221,2]
[355538298,1741242654364,-1077.08,0.0001221,2]
[355538299,1741242654375,-1687.03,0.0001221,2]
[355538300,1741242654385,-3373.3,0.0001221,2]
[355538301,1741242654394,-1088.82,0.0001221,2]
[355538302,1741242654405,-1049.59,0.0001221,2]
[355538303,1741242654415,-7192.11,0.0001221,2]
[355538304,1741242654424,-265.26876045,0.0001221,2]
[355538305,1741242654434,-345.61110762,0.00012219,2]
[355538306,1741242654444,-150.0,0.00012224,2]
[355538307,1741242654456,-150.0,0.00012243,2]
[355538308,1741242654466,-150.0,0.00012247,2]
[355538309,1741242654477,-151.70880685,0.00012252,2]
[355538310,1741242654486,-325.04434734,0.00012252,2]
[355538311,1741242654495,-150.0,0.00012266,2]
[355538312,1741242654505,-185.6390955,0.00012267,2]
[355538313,1741242654515,-172.32,0.00012274,2]
[355538314,1741242654524,-345.61110762,0.00012274,2]
[355538315,1741242654533,-265.26876045,0.00012279,2]
[355538316,1741242654544,-150.0,0.00012281,2]
[355538317,1741242654553,-708.24182511,0.00012282,2]
[355538318,1741242654563,-150.0,0.00012295,2]
[355538319,1741242654572,-2063.91,0.000123,2]
[355538320,1741242654581,-150.0,0.00012307,2]
[355538321,1741242654591,-500.0,0.0001231,2]
[355538322,1741242654600,-500.0,0.0001231,2]
[355538323,1741242654610,-566.12,0.0001231,2]
[355538324,1741242654620,-368.80302451,0.0001231,2]
[355538325,1741242654629,-668.76,0.0001231,2]
[355538326,1741242654639,-500.0,0.0001231,2]
[355538327,1741242654648,-747.52,0.0001231,2]
[355538328,1741242654658,-500.0,0.0001231,2]
[355538329,1741242654667,-500.0,0.0001231,2]
[355538330,1741242654677,-500.0,0.0001231,2]
[355538331,1741242654687,-500.0,0.0001231,2]
[355538332,1741242654697,-500.0,0.0001231,2]
[355538333,1741242654706,-538.89,0.0001231,2]
[355538334,1741242654716,-500.0,0.0001231,2]
[355538335,1741242654726,-500.0,0.0001231,2]
[355538336,1741242654735,-557.61,0.0001231,2]
[355538337,1741242654745,-619.64,0.0001231,2]
[355538338,1741242654755,-500.0,0.0001231,2]
[355538339,1741242654765,-584.91,0.0001231,2]
[355538340,1741242654774,-500.0,0.0001231,2]
[355538341,1741242654784,-500.0,0.0001231,2]
[355538342,1741242654795,-811.14,0.0001231,2]
[355538343,1741242654805,-500.0,0.0001231,2]
[355538344,1741242654815,-338.11,0.0001231,2]
[355538345,1741242654825,-643.07,0.0001231,2]
[355538346,1741242654835,-520.56,0.0001231,2]
[355538347,1741242654845,-813.76,0.0001231,2]
[355538348,1741242654855,-176.88,0.0001231,2]
[355538349,1741242654864,-500.0,0.0001231,2]
[355538350,1741242654874,-500.0,0.0001231,2]
[355538351,1741242654883,-500.0,0.0001231,2]
[355538352,1741242654892,-500.0,0.0001231,2]
[355538353,1741242654902,-500.0,0.0001231,2]
[355538354,1741242654912,-675.83,0.0001231,2]
[355538355,1741242654921,-567.39,0.0001231,2]
[355538356,1741242654931,-503.67,0.0001231,2]
[355538357,1741242654941,-496.12,0.0001231,2]
[355538358,1741242654951,-500.0,0.0001231,2]
[355538359,1741242654960,-500.0,0.0001231,2]
[355538360,1741242654970,-583.36,0.0001231,2]
[355538361,1741242654980,-150.72,0.0001231,2]
[355538362,1741242654990,-246.55,0.0001231,2]
[355538363,1741242655000,-627.85,0.0001231,2]
[355538364,1741242655010,-806.82,0.0001231,2]
[355538365,1741242655020,-500.0,0.0001231,2]
[355538366,1741242655029,-595.42,0.0001231,2]
[355538367,1741242655039,-716.19,0.0001231,2]
[355538368,1741242655049,-641.12,0.0001231,2]
[355538369,1741242655058,-500.0,0.0001231,2]
[355538370,1741242655068,-726.67,0.0001231,2]
[355538371,1741242655127,-877.44,0.0001231,2]